[Event "97th Argentine Championship 2022"]
[Site "Barichole"]
[Date "2022.12.08"]
[Round "8.6"]
[White "Sorin, Ariel"]
[Black "Paveto, Kevin"]
[Result "1-0"]
[ECO "D80"]
[WhiteElo "2363"]
[BlackElo "2431"]
[Annotator "TA"]
[PlyCount "105"]
[EventDate "2022.12.01"]
[EventType "tourn"]
[EventCountry "ARG"]
[SourceTitle "playchess.com"]
[Source "ChessBase"]
[SourceQuality "1"]
[TimeControl "40/5400+30:1800+30"]

{[%evp 9,105,23,19,18,45,17,29,23,22,22,28,18,22,19,18,14,12,21,38,42,72,58,79,69,72,69,75,67,67,40,80,84,98,60,52,11,20,0,0,0,-7,0,0,-16,-24,-62,-11,-16,47,56,49,50,53,58,60,58,50,46,66,62,66,71,89,91,100,99,656,656,646,638,631,615,508,417,489,402,637,549,735,735,982,592,569,562,29985,29986,29990,29975,29991,29976,29976,29977,29976,29977,29977,29978,29977,29979]} 1. d4 {[%emt 0:01:27]} Nf6 {[%emt 0:02:17]} 2. c4 {[%emt 0:00:07]} g6 {[%emt 0:00:14]} 3. Nc3 {[%emt 0:00:04]} d5 {[%emt 0:00:06]} 4. Bg5 {[%emt 0:00:09]} Bg7 {[%emt 0:00:07]} 5. Bxf6 {[%emt 0:02:09]} Bxf6 {[%emt 0:00:04]} 6. cxd5 {[%emt 0:00:30] D80: Grünfeld: Unusual White 4th moves and 4 Bg5.} c5 {[%emt 0:00:09]} 7. dxc5 {[%emt 0:01:30] next Rc1 is good for White.} Nd7 {[%emt 0:00:45]} 8. e3 {[%emt 0:03:29] White has an edge.} O-O {[%emt 0:00:51]} 9. Bc4 {[%emt 0:07:14][%cal Bf1c4,Bc4b3,Bb3c2][%mdl 32]} Nxc5 {[%emt 0:00:09]} 10. Nge2 {[%emt 0:05:20]} Qa5 {[%emt 0:01:41][%cal Ob7b5]} 11. O-O {[%emt 0:05:25]} Qb4 {[%emt 0:01:01][%csl LRb2,LRc4]} 12. Bb3 {[%emt 0:01:16] [#]} a5 $146 {[%emt 0:00:30]} ({Predecessor:} 12... Bf5 13. Nd4 Bd3 14. Re1 Rfd8 15. Qd2 a5 16. a3 Qb6 17. Ba2 Rac8 18. Rac1 Ba6 19. Rb1 Bd3 20. Rbc1 Ba6 21. Rb1 Bd3 22. Rbc1 {½-½ (22) Svidler,P (2745)-Nepomniachtchi,I (2740) Moscow 2016}) 13. Rb1 {[%emt 0:04:18]} a4 {[%emt 0:08:58]} 14. Bc2 {[%emt 0:00:31]} Bd7 {[%emt 0:06:53]} 15. a3 {[%emt 0:01:21]} Qa5 {[%emt 0:00:12]} 16. Nd4 {[%emt 0:07:49]} Rfc8 {[%emt 0:04:17]} 17. Qe2 {[%emt 0:01:46]} Rab8 {[%emt 0:01:37]} 18. Rfd1 {[%emt 0:02:50]} Bg7 {[%emt 0:12:17]} 19. Ne4 {[%emt 0:05:57]} e5 {[%emt 0:21:03]} 20. dxe6 {[%emt 0:04:23] White is more active.} Nxe6 {[%emt 0:00:40]} 21. b4 {[%emt 0:03:40]} axb3 {[%emt 0:04:42]} 22. Nxb3 {[%emt 0:00:09]} (22. Rxb3 Bxd4 23. exd4 Nxd4 24. Rxd4 (24. Nf6+ Kg7 $17) 24... Rxc2 $15) 22... Qc7 {[%emt 0:00:11]} 23. Rdc1 {[%emt 0:04:17]} (23. Rbc1 $5 {[%cal Re4d6]} Bc6 24. a4 $11) 23... Bc6 {[%emt 0:03:17]} 24. Bd3 {[%emt 0:06:56]} Qe7 {[%emt 0:04:39]} 25. Na5 {[%emt 0:03:50]} Bd5 {[%emt 0:05:35] White must now prevent ...Rxc1+. A strong pair of Bishops.} 26. Rxc8+ {[%emt 0:07:07]} Rxc8 {[%emt 0:00:18]} 27. f3 {[%emt 0:00:28]} (27. Nd2 {looks sharper.} Bxg2 28. Kxg2 Qg5+ 29. Kh1) 27... f5 {[%emt 0:07:45]} (27... Qxa3 28. Nc4 Qf8 29. Nb6 Bxe4 30. Bxe4 $14) (27... Nc5 $15 28. Nxc5 Qxc5) 28. Nf2 $1 $11 {[%emt 0:07:24]} Qxa3 {[%emt 0:01:10]} ({Better is} 28... Kh8 $11) 29. Nc4 $14 {[%emt 0:00:23]} Qc5 {[%emt 0:03:11][%cal Rd5c4]} 30. Nb6 {[%emt 0:00:17]} Rc7 {[%emt 0:01:36]} 31. Nxd5 {[%emt 0:00:21]} Qxd5 {[%emt 0:00:02]} 32. e4 {[%emt 0:00:18]} fxe4 {[%emt 0:04:51]} 33. Bxe4 {[%emt 0:01:05]} Qe5 {[%emt 0:00:34]} 34. Qa2 {[%emt 0:01:36] Hoping for f4.} (34. Rxb7 $2 {too greedy.} Rxb7 35. Kf1 Rb2 $19) 34... Kh8 {[%emt 0:00:29]} 35. g3 {[%emt 0:00:49]} (35. Rxb7 {leads to mate.} Rc1+) 35... Bf6 {[%emt 0:02:48]} 36. Bxb7 {[%emt 0:02:01]} Qe3 {[%emt 0:01:02]} 37. Kg2 {[%emt 0:00:58] And now Ng4 would win.} Nd4 $2 {[%emt 0:00:16][%mdl 8192] Loses the game.} (37... Bd4 $16) 38. Be4 $18 {[%emt 0:00:49] White wants to mate with Rb8+.} Kg7 {[%emt 0:01:13]} 39. Rb8 {[%emt 0:00:30][%cal Bb1b8,Bb8g8,Bg8c8,Bc8c2][%mdl 32] Qg8+ would kill now.} Rf7 {[%emt 0:01:29]} 40. Qa8 {[%emt 0:00:00]} Qd2 {[%emt 0:00:00][%cal Od4f3]} 41. Rg8+ {[%emt 0:06:24]} Kh6 {[%emt 0:01:00][%cal Od4f3]} 42. Qd5 {[%emt 0:19:14] Intending Bxg6 and mate.} ({Weaker is} 42. Qc8 Nf5 43. Bxf5 Bd4 $18) 42... Rg7 {[%emt 0:12:15]} (42... Ra7 $142) 43. Rc8 {[%emt 0:00:46][%cal Oc8c2] Threatens to win with Rc2!} Ra7 {[%emt 0:01:53] [#]} 44. Rc2 {[%emt 0:01:13][%mdl 512] Against Ra2} Qg5 {[%emt 0:02:21]} (44... Qxc2 45. Bxc2) 45. Ng4+ {[%emt 0:02:14]} Kg7 {[%emt 0:00:02] [#]} 46. Rc8 $1 {[%emt 0:01:13][%csl Gd5][%cal Rc8g8]} Rf7 {[%emt 0:02:11]} 47. Qa8 {[%emt 0:00:57][%csl Ga8][%cal Rc8g8] White mates.} h5 {[%emt 0:03:08]} 48. Rg8+ {[%emt 0:00:15]} Kh7 {[%emt 0:00:02]} 49. Bxg6+ {[%emt 0:00:13]} Qxg6 {[%emt 0:00:05]} 50. Rxg6 {[%emt 0:00:13]} Kxg6 {[%emt 0:00:07]} 51. Qg8+ {[%emt 0:00:38]} Rg7 {[%emt 0:00:16]} 52. Qe8+ {[%emt 0:00:21]} Rf7 {[%emt 0:00:13] [#]} 53. Nh6 $1 {[%emt 0:00:10][%mdl 512] Weighted Error Value: White=0.27 (precise) /Black=0.42} 1-0

[Event "97th Argentine Championship 2022"]
[Site "Barichole"]
[Date "2022.12.08"]
[Round "9.1"]
[White "Fiorito, Joaquin"]
[Black "Acosta, Pablo Ismael"]
[Result "1/2-1/2"]
[ECO "C02"]
[WhiteElo "2344"]
[BlackElo "2461"]
[Annotator "TA"]
[PlyCount "26"]
[EventDate "2022.12.01"]
[EventType "tourn"]
[EventCountry "ARG"]
[SourceTitle "playchess.com"]
[Source "ChessBase"]
[SourceQuality "1"]
[TimeControl "40/5400+30:1800+30"]

{[%evp 12,26,0,0,23,21,29,29,43,0,23,0,39,0,35,0,51]} 1. e4 {[%emt 0:00:05]} e6 {[%emt 0:00:37]} 2. d4 {[%emt 0:00:08]} d5 {[%emt 0:00:16]} 3. e5 {[%emt 0:00:16]} c5 {[%emt 0:00:34]} 4. c3 {[%emt 0:00:08]} Nc6 {[%emt 0:00:31]} 5. Nf3 {[%emt 0:00:09]} Bd7 {[%emt 0:00:23]} 6. Be2 {[%emt 0:00:31]} cxd4 {[%emt 0:00:32]} 7. cxd4 {[%emt 0:00:27]} Qb6 {[%emt 0:00:21] C02: French: Advance Variation.} 8. Nc3 {[%emt 0:00:20]} Nge7 {[%emt 0:00:35]} 9. Na4 {[%emt 0:00:51]} Qa5+ {[%emt 0:00:31] [#] White has an edge.} 10. Nc3 $146 {[%emt 0:00:12]} (10. Bd2 $5 {[%cal Rd2a5]} Qd8 11. Bd3 $14) ({Predecessor:} 10. Bd2 Qc7 11. O-O Nf5 12. Rc1 Qd8 13. Bg5 Qa5 14. Bd2 Bb4 15. Bxb4 Nxb4 16. Nc5 Bc8 17. a3 Nc6 18. Rc3 O-O 19. Bd3 Qd8 20. Bb1 {½-½ (54) Cvitan,E (2094)-Bulic,J (2260) Croatia 2016}) 10... Qb6 {[%emt 0:00:38]} 11. Na4 {[%emt 0:00:36]} Qa5+ {[%emt 0:00:21]} 12. Nc3 {[%emt 0:00:08]} (12. Bd2 $5 {[%cal Rd2a5]} Qd8 13. Bd3 $14) 12... Qb6 {[%emt 0:00:13]} 13. Na4 {[%emt 0:00:06]} Qa5+ {[%emt 1:31:28] Weighted Error Value: White=0.26 (precise) /Black=0.05 (flawless)} 1/2-1/2

[Event "97th Argentine Championship 2022"]
[Site "Barichole"]
[Date "2022.12.08"]
[Round "9.2"]
[White "Mareco, Sandro"]
[Black "Valerga, Diego"]
[Result "1-0"]
[ECO "D34"]
[WhiteElo "2619"]
[BlackElo "2438"]
[Annotator "TA"]
[PlyCount "137"]
[EventDate "2022.12.01"]
[EventType "tourn"]
[EventCountry "ARG"]
[SourceTitle "playchess.com"]
[Source "ChessBase"]
[SourceQuality "1"]
[TimeControl "40/5400+30:1800+30"]

{[%evp 19,137,26,61,54,53,60,54,49,39,38,34,14,20,22,32,33,53,49,57,47,64,31,65,68,62,57,57,56,64,62,62,63,64,63,65,65,90,103,93,66,111,35,39,42,48,24,41,37,51,45,87,84,120,101,93,85,131,137,163,151,149,159,196,138,141,137,285,96,119,79,89,63,127,137,237,229,231,249,226,220,340,258,1336,1321,1285,1274,894,0,1644,1644,1502,0,0,0,1479,1439,1370,1385,1399,1361,29968,29969,29973,29970,29969,1662,29969,0,29954,12839,29980,29982,29984,29982,29978,29971,29961,6083,29988,29989]} 1. Nf3 {[%emt 0:01:45]} Nf6 {[%emt 0:00:24]} 2. c4 {[%emt 0:00:05]} e6 {[%emt 0:00:07]} 3. g3 {[%emt 0:00:06]} d5 {[%emt 0:01:48]} 4. Bg2 {[%emt 0:00:05]} Be7 {[%emt 0:00:59]} 5. O-O {[%emt 0:00:14]} O-O {[%emt 0:00:07]} 6. d4 {[%emt 0:00:33]} c5 {[%emt 0:00:26]} 7. cxd5 {[%emt 0:00:12]} exd5 {[%emt 0:00:07]} 8. Nc3 {[%emt 0:00:33]} Nc6 {[%emt 0:00:30]} 9. dxc5 {[%emt 0:03:11]} Bxc5 {[%emt 0:00:09]} 10. a3 {[%emt 0:00:12] Recently 10.Na4 got a lot of attention.} Re8 {[%emt 0:08:27]} 11. b4 {[%emt 0:00:18] D34: Tarrasch Defence: 6 g3 Nf6 7 Bg2 Be7.} Bb6 {[%emt 0:00:07]} 12. Bb2 {[%emt 0:00:23]} Be6 {[%emt 0:06:56]} 13. Na4 {[%emt 0:02:53] White is slightly better.} Ne4 {[%emt 0:01:49]} 14. Nxb6 {[%emt 0:11:26]} Qxb6 {[%emt 0:06:31]} 15. Nd4 {[%emt 0:06:08] [#]} Nxd4 $146 {[%emt 0:11:00]} ({Predecessor:} 15... Ne5 16. Nxe6 Qxe6 17. Qd4 f6 18. Bxe4 dxe4 19. Qxe4 Nc4 20. Qxe6+ Rxe6 21. Bd4 Rxe2 {½-½ (33) Molchanova,T (2346)-Zhukova,N (2435) Gaziantep 2012}) 16. Bxd4 {[%emt 0:00:06]} (16. Qxd4 {simplifies} Qxd4 17. Bxd4 b6 18. Rfd1) 16... Qb5 {[%emt 0:00:24]} 17. Qc2 {[%emt 0:22:12]} Rec8 {[%emt 0:04:47]} 18. Qb2 {[%emt 0:00:26]} f6 {[%emt 0:00:16]} 19. a4 {[%emt 0:00:33]} Qd7 {[%emt 0:04:20]} 20. Rfd1 {[%emt 0:00:33]} Qf7 {[%emt 0:04:23]} 21. Rac1 {[%emt 0:00:53]} a6 {[%emt 0:01:41]} 22. Bb6 {[%emt 0:04:13]} Rxc1 {[%emt 0:11:39]} 23. Rxc1 {[%emt 0:00:08]} (23. Qxc1 Rc8 24. Qe3 Nc3 $11) 23... Rc8 {[%emt 0:00:08]} 24. Rxc8+ {[%emt 0:04:00]} Bxc8 {[%emt 0:00:18]} 25. Qd4 {[%emt 0:00:13]} Qe6 {[%emt 0:04:42]} 26. f3 {[%emt 0:03:42]} Nd6 {[%emt 0:02:36]} 27. Bc5 {[%emt 0:04:07]} Nf5 {[%emt 0:10:34] Inhibits e4.} 28. Qd3 {[%emt 0:00:13]} b6 {[%emt 0:00:52]} 29. Bf2 {[%emt 0:00:26]} Qc6 {[%emt 0:01:34]} 30. h3 {[%emt 0:04:49]} (30. e4 $16 Ne7 31. Bf1) 30... Nd6 $14 {[%emt 0:06:02]} 31. Qd4 {[%emt 0:03:46]} Nc4 {[%emt 0:03:16]} 32. g4 {[%emt 0:16:49]} (32. f4 $5 {[%cal Rg2d5]} Bb7 33. b5 axb5 34. axb5 Qxb5 35. e4 $14) 32... Bb7 {[%emt 0:03:30]} 33. f4 {[%emt 0:00:10]} h6 $1 {[%emt 0:02:01] Inhibits g5.} 34. h4 {[%emt 0:00:51][%cal Bh3h4,Bh4h5][%mdl 32]} Kf8 {[%emt 0:00:58]} 35. g5 $1 {[%emt 0:01:47] White is more active.} Qe6 {[%emt 0:01:53]} 36. gxh6 {[%emt 0:03:32]} gxh6 {[%emt 0:00:04]} 37. Bf3 {[%emt 0:01:04]} Ke7 {[%emt 0:00:54]} (37... Qf5 $142) 38. h5 $16 {[%emt 0:00:25]} Bc6 {[%emt 0:01:39]} 39. a5 {[%emt 0:01:29]} bxa5 {[%emt 0:00:54]} 40. bxa5 {[%emt 0:00:00]} Bb7 {[%emt 0:00:00]} 41. Qa7 {[%emt 0:01:50]} ({White should play} 41. Qd3 $18 {Strongly threatening Qh7+.} f5 42. Bc5+ Kd8 43. Qd4) 41... Qc6 {[%emt 0:03:36]} 42. Be1 {[%emt 0:04:34]} Qb5 {[%emt 0:04:41]} (42... Kf7 $16 43. Kh2 Nd6) 43. Kh2 $2 {[%emt 0:00:50]} (43. Qd4 $18 {has better winning chances.}) 43... Nd6 {[%emt 0:01:38]} 44. Qe3+ {[%emt 0:02:41]} Kf7 {[%emt 0:00:41][%cal Od5d4]} 45. Bc3 $36 {[%emt 0:07:48][%mdl 2048] Prevents d4. White is pushing.} Nf5 {[%emt 0:04:43]} (45... Ne4 $14) 46. Qa7 $1 {[%emt 0:00:07]} Nh4 {[%emt 0:04:08]} (46... Qc6 $16 47. Be1 Qb5) 47. Bg4 $18 {[%emt 0:01:31] A strong pair of Bishops.} f5 {[%emt 0:01:21]} 48. Kg3 {[%emt 0:00:13] aiming for Bh3.} fxg4 {[%emt 0:02:04]} 49. Kxh4 {[%emt 0:00:09][%mdl 4096] Endgame KQB-KQB} d4 {[%emt 0:06:45]} (49... Qb1 $142 50. Kxg4 Ke7) 50. Qxd4 {[%emt 0:00:45] Black must now prevent Qf6+.} Qxe2 $2 {[%emt 0:01:17]} (50... Qc6 51. Qg7+ (51. Kxg4 Qg2+ 52. Kh4 Qh2+ 53. Kg4 Qxe2+ 54. Kh4 Qh2+ 55. Kg4 Qg2+ 56. Kh4 Qh2+ 57. Kg4 Qg2+ 58. Kh4 Qh2+ $11) 51... Ke8) 51. Qg7+ {[%emt 0:01:44]} Ke6 {[%emt 0:00:23]} 52. f5+ {[%emt 0:07:18]} (52. Qxg4+ Qxg4+ 53. Kxg4 Kf7 $16) 52... Kd6 {[%emt 0:00:26]} 53. Qxb7 $2 {[%emt 0:02:28]} (53. Qd4+ Kc7 $16) (53. Bb4+ $18 Kc6 54. Qxh6+ Kd7 55. Qg7+ Kc6 56. Qd4) 53... Qh2+ $2 {[%emt 0:00:37][%mdl 8192]} (53... Qf2+ $11 54. Kxg4 Qd4+ 55. Kg3 Qxc3+ 56. Kh2 Qe5+ 57. Kg1 Qe1+ 58. Kh2 Qf2+ 59. Kh1 Qe1+ 60. Kh2 (60. Kg2 Qe2+ 61. Kh1 Qxh5+ 62. Kg2 Qg5+ 63. Kh2 Qh5+ 64. Kg3 Qg5+ 65. Kh2 Qh5+ 66. Kg3 Qg5+ 67. Kh2 $11) 60... Qf2+ 61. Kh1 Qe1+ 62. Kh2 (62. Kg2 Qxa5 63. Qc8 Qd2+ 64. Kh3 Qe3+ 65. Kh4 Qg5+ 66. Kh3 Qxh5+ 67. Kg3 Qg5+ 68. Kf3 Qh5+ 69. Kg3 Kd5 $11)) 54. Kxg4 {[%emt 0:00:05] White wants to mate with Qb8+.} Qg1+ {[%emt 0:00:04] [#]} 55. Kf4 $2 {[%emt 0:00:47]} (55. Kh3 $1 $18 {Intending Qb6+ and mate.} Qe3+ 56. Kg2 Qxc3 57. Qxa6+ Kd7 58. Qxh6 Qc2+ 59. Kg3 Qxf5 60. Qg7+ Kd8 61. Qd4+ Ke8 62. Qe3+ Kd7 63. h6) 55... Qc1+ $1 $11 {[%emt 0:00:36]} 56. Kg4 {[%emt 0:01:15]} Qg1+ {[%emt 0:00:27] [#]} 57. Kh3 $1 {[%emt 0:00:18]} Qe3+ {[%emt 0:00:08]} 58. Kg2 {[%emt 0:00:42] White threatens Bb4+ and mate.} Qxc3 {[%emt 0:01:05]} 59. Qxa6+ $18 {[%emt 0:00:06] KQ-KQ} Ke5 {[%emt 0:00:36]} 60. Qe2+ {[%emt 0:08:29]} ({Weaker is} 60. Qxh6 Qc2+ 61. Kg1 Qb1+ 62. Kg2 Qe4+ 63. Kh3 Qd3+ 64. Kh4 Qe4+ 65. Kh3 Qd3+ 66. Kh4 Qe4+ 67. Kh3 $11) 60... Kf6 {[%emt 0:01:08]} 61. a6 {[%emt 0:00:39]} Qc6+ {[%emt 0:00:28]} 62. Kg3 {[%emt 0:00:18]} (62. Kf2 $142 Qa4 63. Qe6+ Kg5 64. f6 Qc2+ 65. Kf3 Qd1+ 66. Qe2 Qd5+ 67. Qe4 Qd1+ 68. Kf2 Qd2+ 69. Qe2) 62... Qc7+ {[%emt 0:00:49]} 63. Kg2 {[%emt 0:00:24]} Qc6+ {[%emt 0:00:10]} 64. Kf2 {[%emt 0:00:07][%cal Oe2e6] Threatening mate with Qe6+!} Qb6+ {[%emt 0:02:26]} 65. Qe3 {[%emt 0:00:21]} Qb2+ {[%emt 0:00:06]} 66. Kg3 {[%emt 0:00:08]} Qb8+ {[%emt 0:00:38]} 67. Kg4 {[%emt 0:00:37]} Qg8+ {[%emt 0:00:35]} 68. Kh3 {[%emt 0:00:05] Qe6+ would kill now.} Qd5 {[%emt 0:00:53]} 69. Qe6+ {[%emt 0:00:10] Weighted Error Value: White=0.37/Black=0.35} 1-0

[Event "97th Argentine Championship 2022"]
[Site "Barichole"]
[Date "2022.12.08"]
[Round "9.3"]
[White "Peralta, Fernando"]
[Black "Krysa, Leandro"]
[Result "1/2-1/2"]
[ECO "D27"]
[WhiteElo "2587"]
[BlackElo "2524"]
[Annotator "TA"]
[PlyCount "61"]
[EventDate "2022.12.01"]
[EventType "tourn"]
[EventCountry "ARG"]
[SourceTitle "playchess.com"]
[Source "ChessBase"]
[SourceQuality "1"]
[TimeControl "40/5400+30:1800+30"]

{[%evp 17,61,0,0,4,2,2,13,-2,0,0,7,7,5,8,14,17,64,48,41,32,41,35,34,0,0,0,0,-4,-4,-4,-4,-5,0,0,0,0,0,0,0,0,0,0,0,0,0,-3]} 1. d4 {[%emt 0:01:28]} d5 {[%emt 0:00:09]} 2. c4 {[%emt 0:00:05]} e6 {[%emt 0:00:09]} 3. Nf3 {[%emt 0:00:07]} Nf6 {[%emt 0:00:10]} 4. Nc3 {[%emt 0:00:05]} c6 {[%emt 0:00:08]} 5. e3 {[%emt 0:00:20]} a6 {[%emt 0:00:19]} 6. Bd3 {[%emt 0:02:54]} dxc4 {[%emt 0:00:19]} 7. Bxc4 {[%emt 0:00:03]} b5 {[%emt 0:00:12]} 8. Bb3 {[%emt 0:00:28]} c5 {[%emt 0:10:12]} 9. O-O {[%emt 0:01:32]} Bb7 {[%emt 0:02:16]} 10. e4 {[%emt 0:01:37] D27: Queen's Gambit Accepted: Classical main line: 7 e4!? and 7 a4.} cxd4 {[%emt 0:07:50]} 11. Nxd4 {[%emt 0:00:10] next e5 is good for White.} Nc6 {[%emt 0:04:01] Against e5} 12. Nxc6 {[%emt 0:00:19]} Qxd1 {[%emt 0:07:06] 12...Qxd1 has lost popularity.} 13. Rxd1 {[%emt 0:00:28] [#] Hoping for Ne5.} Bxc6 {[%emt 0:00:04]} 14. f3 {[%emt 0:00:10]} Bc5+ {[%emt 0:02:57]} 15. Kf1 {[%emt 0:00:07]} Nd7 {[%emt 0:02:42]} 16. Ne2 {[%emt 0:08:54] [#]} e5 $146 {[%emt 0:12:45]} (16... Rc8 $11) ({Predecessor:} 16... Ke7 17. Nd4 Rhc8 18. Bg5+ f6 19. Be3 Bxd4 20. Bxd4 b4 21. Rdc1 Bb5+ 22. Kf2 a5 23. Bd1 Ne5 24. Bxe5 fxe5 {½-½ (34) Maiorov,N (2519)-Bernadskiy,V (2588) Roquetas de Mar 2020}) 17. Bg5 {[%emt 0:07:20] White is more active.} f6 {[%emt 0:04:53]} 18. Bd2 {[%emt 0:20:07] [#] aiming for Rac1.} Ke7 {[%emt 0:13:31]} 19. Rac1 {[%emt 0:02:54][%cal Oc1c5] And now Rxc5! would win.} Rhc8 {[%emt 0:03:22]} 20. Ba5 {[%emt 0:03:55]} (20. Rc2 $5 {[%cal Rd1c1]}) 20... Rab8 $1 {[%emt 0:08:12] The position is equal.} 21. Nc3 {[%emt 0:22:13]} Nb6 {[%emt 0:01:58]} (21... Bb6 {seems wilder.} 22. Bb4+ Bc5 23. a3 Bxb4 24. axb4 Nb6) 22. Bxb6 {[%emt 0:08:39]} Bxb6 {[%emt 0:00:13]} 23. Nd5+ {[%emt 0:00:03]} Bxd5 {[%emt 0:00:30]} 24. Bxd5 {[%emt 0:00:04]} Bd4 {[%emt 0:07:59]} 25. b3 {[%emt 0:02:15]} a5 {[%emt 0:05:17]} 26. Ke2 {[%emt 0:01:31]} Bb2 {[%emt 0:00:28]} 27. Rxc8 {[%emt 0:03:02]} Rxc8 {[%emt 0:00:04]} 28. Bb7 {[%emt 0:08:07]} Rc2+ {[%emt 0:03:20]} 29. Rd2 {[%emt 0:00:06]} Rxd2+ {[%emt 0:00:04]} 30. Kxd2 {[%emt 0:00:03]} Kd6 {[%emt 0:00:06]} 31. a4 {[%emt 0:01:02] Weighted Error Value: White=0.04 (flawless) /Black=0.03 (flawless)} 1/2-1/2

[Event "97th Argentine Championship 2022"]
[Site "Barichole"]
[Date "2022.12.08"]
[Round "9.4"]
[White "Pichot, Alan"]
[Black "Gaitan, Juan Manuel"]
[Result "1-0"]
[ECO "C42"]
[WhiteElo "2637"]
[BlackElo "2347"]
[Annotator "TA"]
[PlyCount "71"]
[EventDate "2022.12.01"]
[EventType "tourn"]
[EventCountry "ARG"]
[SourceTitle "playchess.com"]
[Source "ChessBase"]
[SourceQuality "1"]
[TimeControl "40/5400+30:1800+30"]

{[%evp 12,71,58,60,73,50,55,56,52,55,41,53,59,60,52,50,46,50,35,39,47,49,53,50,48,51,56,56,66,63,96,82,135,134,126,113,196,200,195,187,199,110,162,155,171,168,152,139,323,309,341,310,341,340,335,297,29992,29993,29994,29995,29997,29998]} 1. e4 {[%emt 0:00:50]} e5 {[%emt 0:00:05]} 2. Nf3 {[%emt 0:00:06]} Nf6 {[%emt 0:00:05]} 3. Nxe5 {[%emt 0:01:39]} Nxe4 {[%emt 0:00:13]} 4. Qe2 {[%emt 0:01:43]} Qe7 {[%emt 0:00:07]} 5. Qxe4 {[%emt 0:00:06]} d6 {[%emt 0:00:05]} 6. d4 {[%emt 0:00:10]} dxe5 {[%emt 0:00:05]} 7. dxe5 {[%emt 0:00:06]} Nc6 {[%emt 0:00:09] C42: Petroff Defence: 3 Nxe5 and unusual White 3rd moves.} 8. Nc3 {[%emt 0:00:06] Hoping for Nd5.} (8. Bb5 $5 {[%cal Rb5c6]} Qb4+ 9. Nc3 Qxe4+ 10. Nxe4 $14) 8... Qxe5 {[%emt 0:00:05]} 9. Qxe5+ {[%emt 0:00:11]} Nxe5 {[%emt 0:00:02] White is slightly better.} 10. Bf4 {[%emt 0:00:11]} Bd6 {[%emt 0:00:05][%cal Oe5f3]} 11. Bg3 {[%emt 0:00:06]} h5 {[%emt 0:00:04] [#] 11...Bg4 is the modern continuation.} 12. Nb5 $146 {[%emt 0:04:52]} ({Predecessor:} 12. h3 h4 13. Bh2 Bf5 14. O-O-O O-O-O 15. Nb5 Rhe8 16. Nxd6+ cxd6 17. Bb5 Re6 18. Rhe1 {1-0 (63) Popilski,G (2458)-Dardha,D (2555) Chess.com INT 2022}) 12... h4 {[%emt 0:00:27]} 13. Nxd6+ {[%emt 0:00:07]} cxd6 {[%emt 0:00:02]} 14. Bf4 {[%emt 0:00:10]} Bf5 {[%emt 0:00:10]} 15. O-O-O {[%emt 0:02:25]} Rc8 {[%emt 0:00:52]} 16. c3 {[%emt 0:00:49]} Ke7 {[%emt 0:00:06]} 17. Be2 {[%emt 0:01:07]} f6 {[%emt 0:01:01]} 18. Rd4 {[%emt 0:05:03]} g5 {[%emt 0:04:43]} 19. Be3 {[%emt 0:00:24]} h3 {[%emt 0:18:02]} 20. g3 {[%emt 0:08:48][%cal Bg2g3,Bg3g4][%mdl 32]} d5 {[%emt 0:15:58]} 21. Rf1 {[%emt 0:28:00]} Ke6 {[%emt 0:11:13] [#]} ({Black should play} 21... a6) 22. g4 $1 $16 {[%emt 0:01:18]} Be4 {[%emt 0:02:15] [#]} 23. f3 $1 {[%emt 0:01:15]} Bg6 {[%emt 0:01:26]} (23... Bh7 $16) 24. f4 $18 {[%emt 0:01:30]} gxf4 {[%emt 0:00:08]} 25. Rdxf4 {[%emt 0:00:18]} Rhf8 {[%emt 0:00:55]} 26. Bxa7 {[%emt 0:08:38] A strong pair of Bishops.} (26. g5 $1 $18) 26... Nd3+ {[%emt 0:00:30]} (26... Bd3 $16 {might work better.} 27. R1f2 Bxe2 28. Rxe2 Rg8) 27. Bxd3 {[%emt 0:00:42]} Bxd3 {[%emt 0:00:01]} 28. R1f3 $36 {[%emt 0:00:14][%mdl 2048] White is really pushing.} Be4 {[%emt 0:00:06]} 29. Rxh3 {[%emt 0:00:08]} Ra8 $2 {[%emt 0:00:22] This costs Black the game.} (29... Rh8 $16 30. Rh5 Rxh5 31. gxh5 Ra8) 30. Bd4 {[%emt 0:01:58]} Rxa2 {[%emt 0:00:20]} 31. Rh6 {[%emt 0:00:07]} Kd7 {[%emt 0:01:21]} 32. Rhxf6 {[%emt 0:00:37]} ({Don't do} 32. Rfxf6 Rxf6 33. Rxf6 Ke8 34. Re6+ Kd7 $18) 32... Re8 {[%emt 0:00:12]} 33. Rf7+ {[%emt 0:00:17]} Kc6 $2 {[%emt 0:00:07]} (33... Kc8 $18 34. Rf8 Rd8 35. Rxd8+ Kxd8 36. Rf8+ Kd7 37. Rf7+ Kc8) 34. R4f6+ {[%emt 0:00:31] White mates.} Kb5 {[%emt 0:00:07]} 35. Rxb7+ {[%emt 0:00:09]} Kc4 {[%emt 0:00:06]} 36. Kd2 {[%emt 0:00:11] Weighted Error Value: White=0.07 (flawless) /Black=0.43} 1-0